fUSD/lending_fUSD_20241227
["ID","MTS","AMOUNT","RATE_DAILY","PERIOD"]
[346819696,1735306255124,-789.28,0.00011151,2]
[346819697,1735306255135,-1940.51,0.00011151,2]
[346819698,1735306255147,-2076.11,0.00011151,2]
[346819699,1735306255156,-500.0,0.00011151,2]
[346819700,1735306255166,-582.72,0.00011151,2]
[346819701,1735306255176,-701.52,0.00011151,2]
[346819702,1735306255187,-1683.42,0.00011151,2]
[346819703,1735306255197,-500.0,0.00011151,2]
[346819704,1735306255207,-500.0,0.00011151,2]
[346819705,1735306255219,-939.11,0.00011151,2]
[346819706,1735306255229,-500.0,0.00011151,2]
[346819707,1735306255239,-1060.31,0.00011151,2]
[346819708,1735306255248,-1884.63,0.00011151,2]
[346819709,1735306255258,-702.23,0.00011151,2]
[346819710,1735306255270,-1875.64,0.00011151,2]
[346819711,1735306255280,-528.22,0.00011151,2]
[346819712,1735306255291,-500.0,0.00011151,2]
[346819713,1735306255300,-2631.5,0.00011151,2]
[346819714,1735306255311,-5896.68,0.00011151,2]
[346819715,1735306255320,-500.0,0.00011151,2]
[346819716,1735306255329,-702.21,0.00011151,2]
[346819717,1735306255339,-901.63,0.00011151,2]
[346819718,1735306255348,-2072.97,0.00011151,2]
[346819719,1735306255358,-500.0,0.00011151,2]
[346819720,1735306255368,-1703.99,0.00011151,2]
[346819721,1735306255378,-1353.5,0.00011151,2]
[346819722,1735306255387,-500.0,0.00011151,2]
[346819723,1735306255397,-500.0,0.00011151,2]
[346819724,1735306255406,-500.0,0.00011151,2]
[346819725,1735306255416,-1781.59,0.00011151,2]
[346819726,1735306255425,-500.0,0.00011151,2]
[346819727,1735306255435,-742.42,0.00011151,2]
[346819728,1735306255445,-653.91,0.00011151,2]
[346819729,1735306255455,-798.31,0.00011151,2]
[346819730,1735306255464,-2581.0,0.00011151,2]
[346819731,1735306255474,-500.0,0.00011151,2]
[346819732,1735306255484,-500.0,0.00011151,2]
[346819733,1735306255494,-1852.4,0.00011151,2]
[346819734,1735306255503,-500.0,0.00011151,2]
[346819735,1735306255513,-500.0,0.00011151,2]
[346819736,1735306255523,-500.0,0.00011151,2]
[346819737,1735306255532,-893.35,0.00011151,2]
[346819738,1735306255543,-2117.12,0.00011151,2]
[346819739,1735306255553,-1561.34,0.00011151,2]
[346819740,1735306255563,-1191.99,0.00011151,2]
[346819741,1735306255572,-1486.12,0.00011151,2]
[346819742,1735306255583,-1280.4,0.00011151,2]
[346819743,1735306255594,-2058.65,0.00011151,2]
[346819744,1735306255604,-2670.13,0.00011151,2]
[346819745,1735306255614,-500.0,0.00011151,2]
[346819746,1735306255624,-839.4,0.00011151,2]
[346819747,1735306255633,-500.0,0.00011151,2]
[346819748,1735306255643,-500.0,0.00011151,2]
[346819749,1735306255653,-1408.15,0.00011151,2]
[346819750,1735306255663,-877.95,0.00011151,2]
[346819751,1735306255672,-517.88,0.00011151,2]
[346819752,1735306255682,-500.0,0.00011151,2]
[346819753,1735306255691,-2862.18,0.00011151,2]
[346819754,1735306255701,-907.76,0.00011151,2]
[346819755,1735306255711,-1568.55,0.00011151,2]
[346819756,1735306255721,-399.22804406,0.00011151,2]
[346819757,1735306255731,-200.0,0.00011151,2]
[346819758,1735306255740,-2911.29,0.00011151,2]
[346819759,1735306255750,-2911.29,0.00011151,2]
[346819760,1735306255760,-674.4,0.00011151,2]
[346819761,1735306255769,-500.0,0.00011151,2]
[346819762,1735306255779,-2077.6,0.00011151,2]
[346819763,1735306255790,-3405.53,0.00011151,2]
[346819764,1735306255800,-2791.45,0.00011151,2]
[346819765,1735306255811,-608.08239022,0.00011151,2]
[346819766,1735306255821,-1960.94,0.00011151,2]
[346819767,1735306255830,-501.37,0.00011151,2]
[346819768,1735306255840,-1471.36,0.00011151,2]
[346819769,1735306255850,-500.0,0.00011151,2]
[346819770,1735306255859,-2066.35,0.00011151,2]
[346819771,1735306255869,-607.81,0.00011151,2]
[346819772,1735306255879,-1487.03,0.00011151,2]
[346819773,1735306255889,-1538.23,0.00011151,2]
[346819774,1735306255899,-500.0,0.00011151,2]
[346819775,1735306255910,-3972.05,0.00011151,2]
[346819776,1735306255919,-5071.1,0.00011151,2]
[346819777,1735306255929,-500.0,0.00011151,2]
[346819778,1735306255939,-1140.63,0.00011151,2]
[346819779,1735306255950,-3650.7,0.00011151,2]
[346819780,1735306255959,-549.8,0.00011151,2]
[346819781,1735306255969,-1276.18,0.00011151,2]
[346819782,1735306255979,-8808.23,0.00011151,2]
[346819783,1735306255989,-500.0,0.00011151,2]
[346819784,1735306255999,-3809.01,0.00011151,2]
[346819785,1735306256009,-1267.32,0.00011151,2]
[346819786,1735306256019,-20639.26,0.00011151,2]
[346819787,1735306256029,-1451.45,0.00011151,2]
[346819788,1735306256038,-6189.98,0.00011151,2]
[346819789,1735306256048,-6189.98,0.00011151,2]
[346819790,1735306256058,-1251.17,0.00011151,2]
[346819791,1735306256068,-3204.59,0.00011151,2]
[346819792,1735306256078,-1794.95,0.00011151,2]
[346819793,1735306256088,-500.0,0.00011151,2]
[346819794,1735306256097,-4594.04,0.00011151,2]
[346819795,1735306256106,-150.0,0.00011151,2]
[346819796,1735306256115,-500.0,0.00011151,2]
[346819797,1735306256125,-863.22,0.00011151,2]
[346819798,1735306256136,-4907.67,0.00011151,2]
[346819799,1735306256147,-5000.0,0.00011151,2]
[346819800,1735306256159,-1280.94,0.00011151,2]
[346819801,1735306256168,-500.0,0.00011151,2]
[346819802,1735306256179,-500.0,0.00011151,2]
[346819803,1735306256189,-500.0,0.00011151,2]
[346819804,1735306256198,-9143.35,0.00011151,2]
[346819805,1735306256208,-2552.57,0.00011151,2]
[346819806,1735306256220,-1125.65,0.00011151,2]
[346819807,1735306256231,-583.35,0.00011151,2]
[346819808,1735306256240,-1328.72,0.00011151,2]
[346819809,1735306256250,-996.77,0.00011151,2]
[346819810,1735306256259,-1157.95,0.00011151,2]
[346819811,1735306256270,-500.0,0.00011151,2]
[346819812,1735306256280,-1578.52,0.00011151,2]
[346819813,1735306256291,-500.0,0.00011151,2]
[346819814,1735306256300,-1605.7,0.00011151,2]
[346819815,1735306256310,-500.0,0.00011151,2]
[346819816,1735306256320,-500.0,0.00011151,2]
[346819817,1735306256330,-500.0,0.00011151,2]
[346819818,1735306256339,-10270.36,0.00011151,2]
[346819819,1735306256350,-500.0,0.00011151,2]
[346819820,1735306256359,-500.0,0.00011151,2]
[346819821,1735306256369,-500.0,0.00011151,2]
[346819822,1735306256379,-500.0,0.00011151,2]
[346819823,1735306256389,-500.0,0.00011151,2]
[346819824,1735306256399,-500.0,0.00011151,2]
[346819825,1735306256409,-4867.6,0.00011151,2]
[346819826,1735306256418,-500.0,0.00011151,2]
[346819827,1735306256429,-500.0,0.00011151,2]
[346819828,1735306256438,-901.36,0.00011151,2]
[346819829,1735306256447,-500.0,0.00011151,2]
[346819830,1735306256457,-743.5,0.00011151,2]
[346819831,1735306256467,-500.0,0.00011151,2]
[346819832,1735306256477,-4713.74,0.00011151,2]
[346819833,1735306256487,-1521.59,0.00011151,2]
[346819834,1735306256496,-500.0,0.00011151,2]
[346819835,1735306256506,-1367.42,0.00011151,2]
[346819836,1735306256516,-17898.06,0.00011151,2]
[346819837,1735306256526,-500.0,0.00011151,2]
[346819838,1735306256535,-500.0,0.00011151,2]
[346819839,1735306256546,-1837.88,0.00011152,2]
[346819840,1735306256555,-4000.52,0.00011152,2]
[346819841,1735306256565,-4508.39,0.00011152,2]
[346819842,1735306256574,-944.58,0.00011152,2]
[346819843,1735306256584,-3922.68,0.00011152,2]
[346819844,1735306256593,-3189.19,0.00011152,2]
[346819845,1735306256682,-4999.96,0.00011152,2]
[346819846,1735306256691,-5710.83,0.00011152,2]
[346819847,1735306256701,-8804.53,0.00011152,2]
[346819848,1735306256710,-11771.94,0.00011152,2]
[346819849,1735306256719,-10790.95,0.00011152,2]
[346819850,1735306256728,-61267.22,0.00011152,2]
[346819851,1735306256738,-6967.22,0.00011152,2]
[346819852,1735306256747,-3888.21,0.00011152,2]
[346819853,1735306256756,-500.0,0.00011152,2]
[346819854,1735306256765,-500.0,0.00011152,2]
[346819855,1735306256776,-2033.34,0.00011152,2]
[346819856,1735306256785,-5758.05,0.00011152,2]
[346819857,1735306256796,-44342.41,0.00011152,2]
[346819858,1735306256806,-1531.53,0.00011152,2]
[346819859,1735306256816,-4568.36,0.00011152,2]
[346819860,1735306256827,-151.81,0.00011153,2]
[346819861,1735306256837,-500.0,0.00011153,2]
[346819862,1735306256846,-500.0,0.00011153,2]
[346819863,1735306256855,-1813.64,0.00011153,2]
[346819864,1735306256865,-500.0,0.00011153,2]
[346819865,1735306256875,-538.19485501,0.00011153,2]
[346819866,1735306256884,-500.0,0.00011153,2]
[346819867,1735306256893,-3099.76,0.00011153,2]
[346819868,1735306256902,-10962.93,0.00011153,2]
[346819869,1735306256911,-1377.79,0.00011153,2]
[346819870,1735306256923,-2950.93,0.00011153,2]
[346819871,1735306256932,-3054.53,0.00011153,2]
[346819872,1735306256941,-2338.42,0.00011153,2]
[346819873,1735306256950,-494.92316378,0.00011153,2]
[346819874,1735306256960,-7649.12,0.00011153,2]
[346819875,1735306256969,-500.0,0.00011153,2]
[346819876,1735306256979,-6791.44,0.00011153,2]
[346819877,1735306256988,-500.0,0.00011173,2]
[346819878,1735306256997,-504.65574663,0.00011173,2]
[346819879,1735306257006,-500.0,0.00011173,2]
[346819880,1735306257016,-202.84218656,0.00011173,2]
[346819881,1735306257026,-1287.88590374,0.00011191,2]
[346819882,1735306257035,-500.0,0.00011191,2]
[346819883,1735306257049,-500.0,0.00011191,2]
[346819884,1735306257059,-500.0,0.00011191,2]
[346819885,1735306257068,-500.0,0.00011191,2]
[346819886,1735306257078,-500.0,0.00011191,2]
[346819887,1735306257087,-500.0,0.00011191,2]
[346819888,1735306257097,-500.0,0.00011191,2]
[346819889,1735306257106,-321.03891951,0.00011191,2]
[346819890,1735306257117,-5707.85849836,0.00011192,2]
[346819891,1735306257127,-1350699.1543234,0.00011192,2]
[346819892,1735306257137,-12589824.48042937,0.00011192,4]
[346819893,1735306257146,-150.0,0.00011192,2]
[346819894,1735306257155,-150.0,0.00011192,2]
[346819895,1735306257167,-150.0,0.00011192,2]
[346819896,1735306257176,-150.0,0.00011192,2]
[346819897,1735306257186,-150.0,0.00011192,2]
[346819898,1735306257195,-88648.52957526,0.00011192,2]
[346819899,1735306257204,-12431.27007962,0.00011192,2]
[346819900,1735306257215,-555.4165363,0.00011192,2]
[346819901,1735306257224,-6005.06600819,0.00011192,2]
[346819902,1735306257234,-8817.86081758,0.00011192,2]
[346819903,1735306257244,-2009.9101287,0.00011192,2]
[346819904,1735306257254,-673.2583177,0.00011192,2]
[346819905,1735306257263,-151.0,0.00011192,2]
[346819906,1735306257272,-151.0,0.00011192,2]
[346819907,1735306257281,-773.7142205,0.00011192,2]
[346819908,1735306257291,-1000.0,0.00011193,2]
[346819909,1735306257300,-256.4,0.000112,2]
[346819910,1735306257309,-250.0,0.000112,2]
[346819911,1735306257318,-250.0,0.000112,2]
[346819912,1735306257327,-250.0,0.000112,2]
[346819913,1735306257337,-250.0,0.000112,2]
[346819914,1735306257347,-250.0,0.000112,2]
[346819915,1735306257356,-250.0,0.000112,2]
[346819916,1735306257366,-250.0,0.000112,2]
[346819917,1735306257376,-250.0,0.000112,2]
[346819918,1735306257385,-250.0,0.000112,2]
[346819919,1735306257396,-250.0,0.000112,2]
[346819920,1735306257405,-250.0,0.000112,2]
[346819921,1735306257416,-250.0,0.000112,2]
[346819922,1735306257426,-250.0,0.000112,2]
[346819923,1735306257436,-250.0,0.000112,2]
[346819924,1735306257445,-250.0,0.000112,2]
[346819925,1735306257455,-250.0,0.000112,2]
[346819926,1735306257464,-250.0,0.000112,2]
[346819927,1735306257475,-250.0,0.000112,2]
[346819928,1735306257485,-250.0,0.000112,2]
[346819929,1735306257494,-250.0,0.000112,2]
[346819930,1735306257505,-250.0,0.000112,2]
[346819931,1735306257514,-250.0,0.000112,2]
[346819932,1735306257524,-250.0,0.000112,2]
[346819933,1735306257532,-250.0,0.000112,2]
[346819934,1735306257544,-250.0,0.000112,2]
[346819935,1735306257553,-250.0,0.000112,2]
[346819936,1735306257562,-250.0,0.000112,2]
[346819937,1735306257571,-250.0,0.000112,2]
[346819938,1735306257580,-250.0,0.000112,2]
[346819939,1735306257589,-250.0,0.000112,2]
[346819940,1735306257598,-250.0,0.000112,2]
[346819941,1735306257607,-250.0,0.000112,2]
[346819942,1735306257617,-250.0,0.000112,2]
[346819943,1735306257626,-250.0,0.000112,2]
[346819944,1735306257636,-250.0,0.000112,2]
[346819945,1735306257645,-250.0,0.000112,2]
[346819946,1735306257654,-250.0,0.000112,2]
[346819947,1735306257665,-250.0,0.000112,2]
[346819948,1735306257676,-253.13143945,0.00011224,2]
[346819949,1735306257686,-1900.0,0.00011226,2]
[346819950,1735306257696,-3772.0,0.00011226,2]
[346819951,1735306257706,-831.0,0.00011226,2]
[346819952,1735306257715,-1032.949,0.00011226,2]
[346819953,1735306257725,-1257.667,0.00011226,2]
[346819954,1735306257735,-3685.0,0.00011226,2]
[346819955,1735306257745,-536.0,0.00011226,2]
[346819956,1735306257756,-1102.0,0.00011226,2]
[346819957,1735306257765,-2012.0,0.00011226,2]
[346819958,1735306257775,-1266.0,0.00011226,2]
[346819959,1735306257784,-293.681,0.00011226,2]
[346819960,1735306257794,-635.0,0.00011226,2]
[346819961,1735306257803,-3889.0,0.00011226,2]
[346819962,1735306257813,-414.17237447,0.0001124,2]
[346819963,1735306257822,-2000.0,0.00011263,2]
[346819964,1735306257831,-200.0,0.00011263,2]
[346819965,1735306257841,-944.58,0.00011289,2]
[346819966,1735306257850,-200.0,0.00011375,2]
[346819967,1735306257860,-156.592,0.00011408,2]
[346819968,1735306257869,-200.0,0.00011408,2]
[346819969,1735306257878,-150.0,0.00011408,2]
[346819970,1735306257888,-150.352,0.00011408,2]
[346819971,1735306257897,-173.633,0.00011408,2]
[346819972,1735306257907,-161.056,0.00011408,2]
[346819973,1735306257916,-250.0,0.00011408,2]
[346819974,1735306257925,-217.85,0.00011408,2]
[346819975,1735306257934,-204.744,0.00011408,2]
[346819976,1735306257943,-154.011,0.00011411,2]
[346819977,1735306257953,-199.076,0.00011411,2]
[346819978,1735306257963,-1000.0,0.00011421,2]
[346819979,1735306257973,-663.71,0.00011422,2]
[346819980,1735306257983,-821.85,0.00011422,2]
[346819981,1735306257993,-433.88445467,0.00011423,2]
[346819982,1735306258002,-1791.41,0.00011423,2]
[346819983,1735306258011,-3807.95,0.00011423,2]
[346819984,1735306258021,-500.0,0.00011423,2]
[346819985,1735306258030,-1796.18,0.00011423,2]
[346819986,1735306258039,-3486.02,0.00011423,2]
[346819987,1735306258049,-500.0,0.00011423,2]
[346819988,1735306258059,-3549.69,0.00011423,2]
[346819989,1735306258068,-500.0,0.00011423,2]
[346819990,1735306258078,-6594.56,0.00011423,2]
[346819991,1735306258087,-2062.84,0.00011423,2]
[346819992,1735306258097,-192.58,0.00011423,2]
[346819993,1735306258107,-3282.47,0.00011423,2]
[346819994,1735306258116,-5031.78,0.00011423,2]
[346819995,1735306258126,-500.0,0.00011423,2]
[346819996,1735306258136,-4262.57,0.00011423,2]
[346819997,1735306258145,-1958.76,0.00011423,2]
[346819998,1735306258155,-2857.14,0.00011423,2]
[346819999,1735306258168,-3236.92,0.00011423,2]
[346820000,1735306258178,-500.0,0.00011423,2]
[346820001,1735306258188,-5021.39,0.00011423,2]
[346820002,1735306258197,-1338.6,0.00011423,2]
[346820003,1735306258210,-1289.07,0.00011423,2]
[346820004,1735306258219,-5901.0,0.00011423,2]
[346820005,1735306258229,-20736.34,0.00011423,2]
[346820006,1735306258239,-152.363358,0.00011423,2]
[346820007,1735306258248,-16875.17,0.00011423,2]
[346820008,1735306258258,-2974.318948,0.00011423,2]
[346820009,1735306258267,-500.0,0.00011423,2]
[346820010,1735306258276,-2963.052511,0.00011423,2]
[346820011,1735306258286,-9822.55,0.00011423,2]
[346820012,1735306258297,-3969.84,0.00011423,2]
[346820013,1735306258307,-525.48,0.00011423,2]
[346820014,1735306258316,-965.78,0.00011423,2]
[346820015,1735306258326,-6922.2,0.00011423,2]
[346820016,1735306258335,-3367.33,0.00011423,2]
[346820017,1735306258345,-2612.97,0.00011423,2]
[346820018,1735306258355,-17592.6,0.00011423,2]
[346820019,1735306258364,-3747.1,0.00011423,2]
[346820020,1735306258373,-1621.62,0.00011423,2]
[346820021,1735306258382,-933.98,0.00011423,2]
[346820022,1735306258392,-344.07341,0.00011423,2]
[346820023,1735306258401,-194.26963,0.00011423,2]
[346820024,1735306258411,-4469.86,0.00011423,2]
[346820025,1735306258420,-1998.78,0.00011423,2]
[346820026,1735306258430,-3385.44,0.00011423,2]
[346820027,1735306258441,-2070.97,0.00011423,2]
[346820028,1735306258450,-2399.23,0.00011423,2]
[346820029,1735306258459,-3543.74,0.00011423,2]
[346820030,1735306258469,-500.0,0.00011423,2]
[346820031,1735306258478,-500.0,0.00011423,2]
[346820032,1735306258487,-500.0,0.00011423,2]
[346820033,1735306258496,-500.0,0.00011423,2]
[346820034,1735306258506,-1292.65,0.00011423,2]
[346820035,1735306258515,-618.59,0.00011423,2]
[346820036,1735306258525,-4000.3,0.00011423,2]
[346820037,1735306258534,-1062.53,0.00011423,2]
[346820038,1735306258545,-910.89,0.00011424,2]
[346820039,1735306258555,-500.0,0.00011424,2]
[346820040,1735306258564,-827.76,0.00011424,2]
[346820041,1735306258573,-500.0,0.00011424,2]
[346820042,1735306258583,-500.0,0.00011424,2]
[346820043,1735306258592,-830.84,0.00011424,2]
[346820044,1735306258601,-753.68,0.00011424,2]
[346820045,1735306258611,-500.0,0.00011424,2]
[346820046,1735306258620,-747.68,0.00011424,2]
[346820047,1735306258630,-1170.84,0.00011424,2]
[346820048,1735306258639,-500.0,0.00011424,2]
[346820049,1735306258649,-986.25,0.00011424,2]
[346820050,1735306258658,-574.49,0.00011424,2]
[346820051,1735306258667,-1064.11,0.00011424,2]
[346820052,1735306258677,-527.17,0.00011424,2]
[346820053,1735306258686,-500.0,0.00011424,2]
[346820054,1735306258696,-1405.85,0.00011424,2]
[346820055,1735306258705,-526.0,0.00011424,2]
[346820056,1735306258716,-500.0,0.00011424,2]
[346820057,1735306258726,-641.09,0.00011424,2]
[346820058,1735306258736,-730.28,0.00011424,2]
[346820059,1735306258746,-500.0,0.00011424,2]
[346820060,1735306258756,-500.0,0.00011424,2]
[346820061,1735306258766,-500.0,0.00011424,2]
[346820062,1735306258776,-500.0,0.00011424,2]
[346820063,1735306258786,-500.0,0.00011424,2]
[346820064,1735306258796,-500.0,0.00011424,2]
[346820065,1735306258806,-500.0,0.00011424,2]
[346820066,1735306258816,-527.55,0.00011424,2]
[346820067,1735306258826,-500.0,0.00011424,2]
[346820068,1735306258835,-500.0,0.00011424,2]
[346820069,1735306258845,-500.0,0.00011424,2]
[346820070,1735306258855,-500.0,0.00011424,2]
[346820071,1735306258864,-1178.4,0.00011424,2]
[346820072,1735306258874,-834.26,0.00011424,2]
[346820073,1735306258883,-500.0,0.00011424,2]
[346820074,1735306258893,-691.41,0.00011424,2]
[346820075,1735306258902,-500.0,0.00011424,2]
[346820076,1735306258912,-500.0,0.00011424,2]
[346820077,1735306258921,-532.76,0.00011424,2]
[346820078,1735306258931,-500.0,0.00011424,2]
[346820079,1735306258940,-500.0,0.00011424,2]
[346820080,1735306258950,-1196.79,0.00011424,2]
[346820081,1735306258959,-500.0,0.00011424,2]
[346820082,1735306258969,-500.0,0.00011424,2]
[346820083,1735306258979,-500.0,0.00011424,2]
[346820084,1735306258989,-500.0,0.00011424,2]
[346820085,1735306258999,-664.27,0.00011424,2]
[346820086,1735306259009,-1317.21,0.00011424,2]
[346820087,1735306259019,-790.62,0.00011424,2]
[346820088,1735306259028,-500.0,0.00011424,2]
[346820089,1735306259038,-690.28,0.00011424,2]
[346820090,1735306259048,-500.0,0.00011424,2]
[346820091,1735306259059,-500.0,0.00011424,2]
[346820092,1735306259069,-500.0,0.00011424,2]
[346820093,1735306259079,-579.35,0.00011424,2]
[346820094,1735306259089,-755.91,0.00011424,2]
[346820095,1735306259099,-500.0,0.00011424,2]
[346820096,1735306259108,-500.0,0.00011424,2]
[346820097,1735306259119,-500.0,0.00011424,2]
[346820098,1735306259128,-657.83,0.00011424,2]
[346820099,1735306259138,-1038.81,0.00011424,2]
[346820100,1735306259147,-500.0,0.00011424,2]
[346820101,1735306259160,-500.0,0.00011424,2]
[346820102,1735306259170,-1630.68,0.00011424,2]
[346820103,1735306259179,-2128.13,0.00011424,2]
[346820104,1735306259189,-2608.21,0.00011424,2]
[346820105,1735306259199,-958.91,0.00011424,2]
[346820106,1735306259209,-812.85,0.00011424,2]
[346820107,1735306259218,-1119.16,0.00011424,2]
[346820108,1735306259228,-2010.33,0.00011424,2]
[346820109,1735306259240,-500.0,0.00011424,2]
[346820110,1735306259249,-2269.7,0.00011424,2]
[346820111,1735306259259,-1891.6,0.00011424,2]
[346820112,1735306259268,-500.0,0.00011424,2]
[346820113,1735306259278,-1795.09,0.00011424,2]
[346820114,1735306259287,-1012.99,0.00011424,2]
[346820115,1735306259298,-554.75,0.00011424,2]
[346820116,1735306259308,-500.0,0.00011424,2]
[346820117,1735306259318,-704.78,0.00011424,2]
[346820118,1735306259329,-741.75,0.00011424,2]
[346820119,1735306259339,-996.19,0.00011424,2]
[346820120,1735306259348,-3228.51,0.00011424,2]
[346820121,1735306259358,-500.0,0.00011424,2]
[346820122,1735306259368,-841.29,0.00011424,2]
[346820123,1735306259377,-699.02,0.00011424,2]
[346820124,1735306259387,-500.0,0.00011424,2]
[346820125,1735306259398,-1666.45,0.00011424,2]
[346820126,1735306259407,-1620.47,0.00011424,2]
[346820127,1735306259417,-500.0,0.00011424,2]
[346820128,1735306259427,-500.0,0.00011424,2]
[346820129,1735306259437,-500.0,0.00011424,2]
[346820130,1735306259447,-948.23,0.00011424,2]
[346820131,1735306259457,-500.0,0.00011424,2]
[346820132,1735306259468,-500.0,0.00011424,2]
[346820133,1735306259478,-1966.19,0.00011424,2]
[346820134,1735306259488,-534.46,0.00011424,2]
[346820135,1735306259498,-500.0,0.00011424,2]
[346820136,1735306259508,-846.03,0.00011424,2]
[346820137,1735306259518,-629.23,0.00011424,2]
[346820138,1735306259528,-1482.82,0.00011424,2]
[346820139,1735306259538,-1241.01,0.00011424,2]
[346820140,1735306259548,-1804.34,0.00011424,2]
[346820141,1735306259558,-520.03,0.00011424,2]
[346820142,1735306259568,-500.0,0.00011424,2]
[346820143,1735306259578,-2588.42,0.00011424,2]
[346820144,1735306259588,-686.41,0.00011424,2]
[346820145,1735306259598,-500.0,0.00011424,2]
[346820146,1735306259608,-500.0,0.00011424,2]
[346820147,1735306259617,-2726.57,0.00011424,2]
[346820148,1735306259628,-2696.48,0.00011424,2]
[346820149,1735306259638,-500.0,0.00011424,2]
[346820150,1735306259648,-1695.02,0.00011424,2]
[346820151,1735306259657,-1083.8,0.00011424,2]
[346820152,1735306259667,-500.0,0.00011424,2]
[346820153,1735306259677,-1734.7,0.00011424,2]
[346820154,1735306259686,-791.38,0.00011424,2]
[346820155,1735306259696,-1862.47,0.00011424,2]
[346820156,1735306259706,-500.0,0.00011424,2]
[346820157,1735306259715,-1196.9,0.00011424,2]
[346820158,1735306259725,-1405.39,0.00011424,2]
[346820159,1735306259735,-1342.02,0.00011424,2]
[346820160,1735306259745,-894.0,0.00011424,2]
[346820161,1735306259755,-500.0,0.00011424,2]
[346820162,1735306259764,-2537.2,0.00011424,2]
[346820163,1735306259774,-581.0,0.00011424,2]
[346820164,1735306259784,-1243.42,0.00011424,2]
[346820165,1735306259794,-500.0,0.00011424,2]
[346820166,1735306259804,-764.34,0.00011424,2]
[346820167,1735306259813,-2302.07,0.00011424,2]
[346820168,1735306259823,-500.0,0.00011424,2]
[346820169,1735306259832,-490.28906968,0.00011424,2]
[346820170,1735306259842,-500.0,0.00011424,2]
[346820171,1735306259852,-834.71,0.00011424,2]
[346820172,1735306259861,-1430.52,0.00011424,2]
[346820173,1735306259871,-965.54,0.00011424,2]
[346820174,1735306259881,-500.0,0.00011424,2]
[346820175,1735306259891,-1212.82,0.00011424,2]
[346820176,1735306259900,-500.0,0.00011424,2]
[346820177,1735306259910,-1153.81,0.00011424,2]
[346820178,1735306259919,-514.88,0.00011424,2]
[346820179,1735306259929,-500.0,0.00011424,2]
[346820180,1735306259939,-500.0,0.00011424,2]
[346820181,1735306259949,-926.74,0.00011424,2]
[346820182,1735306259959,-500.0,0.00011424,2]
[346820183,1735306259968,-754.18,0.00011424,2]
[346820184,1735306259978,-500.0,0.00011424,2]
[346820185,1735306259988,-911.33,0.00011424,2]
[346820186,1735306259998,-1814.23,0.00011424,2]
[346820187,1735306260008,-500.0,0.00011424,2]
[346820188,1735306260018,-500.0,0.00011424,2]
[346820189,1735306260028,-1808.12,0.00011424,2]
[346820190,1735306260039,-818.93,0.00011424,2]
[346820191,1735306260052,-1313.64,0.00011424,2]
[346820192,1735306260061,-1648.92,0.00011424,2]
[346820193,1735306260072,-793.17,0.00011424,2]
[346820194,1735306260081,-651.31,0.00011424,2]
[346820195,1735306260091,-500.0,0.00011424,2]